bitfinex/quotes_ETHUSD_20251213
["timestamp","ask_amount","ask_price","bid_price","bid_amount"]
[1765610211443,0.405504,3093.6,3093.3,1e-08]
[1765610211745,0.890004,3093.6,3093.3,1e-08]
[1765610211944,1.374204,3093.6,3093.3,1e-08]
[1765610212946,0.405504,3093.4,3093.3,1e-08]
[1765610213341,0.405504,3093.4,3093.3,0.45760001]
[1765610215946,3.63819295,3093.4,3093.3,0.45760001]
[1765610219725,0.405504,3093.4,3093.3,0.45760001]
[1765610220852,3.23237547,3093.7,3093.3,0.93100001]
[1765610221056,0.405504,3093.6,3093.3,0.47340001]
[1765610221225,0.405504,3093.6,3093.4,0.4734]
[1765610221552,0.405504,3093.6,3093.5,0.4614]
[1765610222175,0.405504,3093.6,3093.5,4.30356888]
[1765610222527,3.63798395,3093.6,3093.5,4.30356888]
[1765610222826,3.63798395,3093.6,3093.5,0.4614]
[1765610223137,3.63798395,3093.6,3093.3,1e-08]
[1765610223453,3.63798395,3093.6,3093.3,0.47340001]
[1765610223857,6.8704639,3093.6,3093.3,0.47340001]
[1765610227657,3.63798395,3093.6,3093.3,0.47340001]
[1765610228254,7.0737579,3094.5,3093.3,0.47340001]
[1765610228255,0.4943,3094.6,3093.5,0.4614]
[1765610228468,0.405504,3094.4,3093.9,3.84216888]
[1765610228668,6.4628708,3094.6,3094.5,0.4614]
[1765610228669,3.2314354,3094.6,3094.5,0.4614]
[1765610228873,3.2314354,3094.6,3094.3,3.93896888]
[1765610229165,3.2314354,3094.6,3094.3,4.41236888]
[1765610229366,3.2314354,3094.6,3094.2,3.84216888]
[1765610229565,0.405504,3094.5,3094.2,3.84216888]
[1765610229755,0.405504,3094.3,3094.2,4.31556888]
[1765610230070,3.23164426,3094.4,3094.2,4.77696888]
[1765610230259,3.23164426,3094.4,3094.3,0.4614]
[1765610230455,3.63714826,3094.4,3094.3,0.4614]
[1765610231370,0.405504,3094.4,3094.3,0.4614]
[1765610231573,0.405504,3094.4,3094.3,0.9348]
[1765610232378,0.001,3094.7,3094.3,4.64421946]
[1765610232543,0.001,3094.7,3094.6,4.30356888]
[1765610232945,0.001,3094.7,3094.6,4.77696888]
[1765610236380,0.001,3094.7,3094.6,4.77292593]
[1765610240085,0.001,3094.7,3094.6,11.84248726]
[1765610240283,0.001,3094.7,3094.6,13.02673599]
[1765610241372,0.001,3094.7,3094.6,13.60721128]
[1765610244692,0.001,3094.7,3094.6,9.76908535]
[1765610244987,0.001,3094.7,3094.6,13.60721128]
[1765610245688,0.001,3094.7,3094.6,9.76908535]
[1765610246876,0.001,3094.7,3094.6,13.60721128]
[1765610249664,0.001,3094.7,3094.6,9.29568535]
[1765610249895,0.001,3094.7,3094.6,9.76298535]
[1765610250089,0.001,3094.7,3094.6,6.53154995]
[1765610250794,0.001,3094.7,3094.6,9.76298535]
[1765610251175,0.001,3094.7,3094.6,9.29568535]
[1765610251394,0.001,3094.7,3094.6,9.76298535]
[1765610253597,0.001,3094.7,3094.6,13.60111128]
[1765610253771,0.001,3094.7,3094.6,9.76298535]
[1765610260087,0.001,3094.7,3094.6,13.60111128]
[1765610264095,0.001,3094.7,3094.6,14.59111128]
[1765610265411,0.001,3094.7,3094.6,10.79468535]
[1765610266108,0.001,3094.7,3094.6,11.26198535]
[1765610268081,0.001,3094.7,3094.6,15.10011128]
[1765610268603,0.4771,3094.7,3094.6,7.10184995]
[1765610268908,0.4771,3094.7,3094.6,5.91760122]
[1765610269984,0.4771,3094.7,3094.6,5.40860122]
[1765610270175,0.4771,3094.7,3094.6,5.40885774]
[1765610271387,0.001,3094.7,3094.6,5.86825774]
[1765610271588,0.001,3094.7,3094.6,9.09969314]
[1765610271818,0.001,3094.7,3094.6,5.86825774]
[1765610272224,0.001,3094.7,3094.6,9.09969314]
[1765610272522,0.001,3094.7,3094.6,5.86825774]
[1765610275521,0.001,3094.7,3094.6,5.40885774]
[1765610275807,0.001,3094.7,3094.6,9.09459314]
[1765610277921,0.001,3094.7,3094.6,9.09429094]
[1765610279216,0.001,3094.7,3094.6,9.57529094]
[1765610279408,0.001,3094.7,3094.6,14.6968542]
[1765610282614,0.001,3094.7,3094.6,10.85877395]
[1765610282916,0.001,3094.7,3094.6,3.3629583]
[1765610283118,0.001,3094.7,3094.6,10.43247395]
[1765610283327,0.001,3094.7,3094.6,10.88677395]
[1765610285614,0.001,3094.7,3094.6,11.36777395]
[1765610287917,0.001,3094.7,3094.6,14.70777395]
[1765610291316,0.001,3094.7,3094.6,10.8696937]
[1765610291520,0.001,3094.7,3094.6,14.70777395]
[1765610291821,0.001,3094.7,3094.6,14.22677395]
[1765610292721,0.001,3094.7,3094.6,14.70777395]
[1765610295794,0.001,3094.7,3094.6,10.99533855]
[1765610296827,0.001,3094.7,3094.6,5.36477529]
[1765610297019,0.4819,3094.7,3094.6,9.25755554]
[1765610298527,0.4819,3094.7,3094.6,12.48899094]
[1765610298718,0.001,3094.7,3094.6,12.48899094]
[1765610299118,0.001,3094.7,3094.6,12.94329094]
[1765610299926,0.001,3094.7,3094.6,9.60329094]
[1765610302133,0.001,3094.7,3094.6,13.91567119]
[1765610303007,0.001,3094.7,3094.6,10.07759094]
[1765610303431,0.001,3094.7,3094.6,10.07655564]
[1765610304919,0.001,3094.7,3094.6,13.91360059]
[1765610310007,0.001,3094.7,3094.6,14.04297485]
[1765610315546,0.001,3094.9,3094.7,0.58047529]
[1765610315837,0.001,3094.9,3094.8,0.52521226]
[1765610316236,0.001,3094.9,3094.8,4.93377164]
[1765610317543,0.001,3094.9,3094.8,8.27377164]
[1765610317839,0.001,3094.9,3094.8,8.24145938]
[1765610320022,0.001,3094.9,3094.8,25.62932138]
[1765610323328,0.001,3094.9,3094.8,35.42080338]
[1765610323660,0.001,3094.9,3094.8,29.10497338]
[1765610324351,0.001,3094.9,3094.8,38.24145938]
[1765610326855,0.001,3095.0,3094.9,0.58047529]
[1765610327045,0.001,3095.1,3094.9,39.24727641]
[1765610327245,0.001,3095.1,3095.0,1.4694]
[1765610327449,0.001,3095.1,3095.0,38.62089306]
[1765610327958,0.001,3095.1,3095.0,38.75023636]
[1765610329430,0.001,3095.2,3095.0,38.75023636]
[1765610329630,0.4685,3096.2,3095.7,0.4929]
[1765610329829,0.1303433,3096.6,3095.8,3.83704495]
[1765610330030,0.1303433,3096.6,3095.9,0.58047529]
[1765610330031,0.4695,3096.0,3095.9,0.58047529]
[1765610330635,0.9472,3096.0,3095.9,1.55042777]
[1765610331260,0.4787,3096.0,3095.9,1.55042777]
[1765610331661,0.4787,3096.0,3095.9,4.78050626]
[1765610332356,0.9472,3096.0,3095.9,4.78050626]
[1765610334377,0.9472,3096.0,3095.9,1.55042777]
[1765610334879,0.9472,3096.0,3095.9,4.78050626]
[1765610335679,0.9472,3096.0,3095.9,5.28950626]
[1765610336940,0.4787,3096.0,3095.9,5.28950626]
[1765610337496,0.001,3096.0,3095.9,6.99084922]
[1765610337798,0.001,3096.0,3095.9,20.64971522]
[1765610338088,0.001,3096.0,3095.9,19.04686722]
[1765610338540,0.001,3096.0,3095.9,22.88159664]
[1765610340083,0.001,3096.0,3095.9,22.88101992]
[1765610342275,0.001,3096.0,3095.9,15.74704592]
[1765610343487,0.001,3096.0,3095.9,16.73754592]
[1765610347098,0.001,3096.0,3095.9,11.81550192]
[1765610347292,0.463,3096.0,3095.9,11.34960192]
[1765610348278,0.9624,3096.0,3095.9,3.77637073]
[1765610348588,0.9624,3096.0,3095.9,2.54092777]
[1765610348795,0.9624,3096.0,3095.9,1.57097529]
[1765610353893,0.9624,3096.0,3095.9,0.9905]
[1765610354925,0.9624,3096.0,3095.9,1.57097529]
[1765610360236,0.9624,3096.0,3095.9,0.9905]
[1765610365434,0.9624,3096.0,3095.6,4.78087536]
[1765610365633,0.005,3095.7,3095.6,4.78087536]
[1765610365834,0.005,3095.7,3095.6,1.55049991]
[1765610367125,0.4593,3095.7,3095.5,0.58047529]
[1765610367310,0.4543,3095.7,3095.6,0.1874]
[1765610367814,0.9063,3095.7,3095.6,0.1874]
[1765610370919,0.9063,3095.7,3095.5,3.81095282]
[1765610371130,0.067,3095.6,3095.5,3.81095282]
[1765610371626,0.067,3095.6,3095.5,0.58047529]
[1765610371809,0.5213,3095.6,3095.5,0.58047529]
[1765610381724,0.5213,3095.6,3095.4,0.58047529]
[1765610381925,0.4482,3095.5,3095.4,0.58047529]
[1765610382141,0.4482,3095.5,3095.4,1.7755385]
[1765610384554,0.4543,3095.6,3095.5,0.1518]
[1765610387158,0.4543,3095.8,3095.5,0.1518]
[1765610391058,0.4543,3095.8,3095.5,3.38229279]
[1765610391231,0.1874,3095.9,3095.6,0.58047529]
[1765610391529,0.6417,3095.9,3095.6,0.58047529]
[1765610391860,0.6417,3095.9,3095.5,1.20537529]
[1765610394366,0.6417,3095.9,3095.5,0.73227529]
[1765610394567,0.1874,3095.9,3095.5,0.73227529]
[1765610394864,0.4611,3095.8,3095.5,0.73227529]
[1765610397246,0.1874,3095.9,3095.5,0.73227529]
[1765610397445,0.6485,3095.9,3095.5,0.73227529]
[1765610398468,0.6485,3095.9,3095.5,1.20097529]
[1765610399466,3.32546625,3096.0,3095.6,0.4687]
[1765610399673,3.78656625,3096.0,3095.6,0.4687]
[1765610400040,3.78656625,3096.0,3095.5,4.44298742]
[1765610400340,3.78656625,3096.0,3095.5,4.91168742]
[1765610402871,0.55654716,3096.0,3095.5,4.91168742]
[1765610403442,0.09544716,3096.0,3095.5,4.91168742]
[1765610403645,0.09544716,3096.0,3095.6,0.4687]
[1765610404375,0.55654716,3096.0,3095.6,0.4687]
[1765610404747,3.78654256,3096.0,3095.6,0.4687]
[1765610405066,0.55654716,3096.0,3095.6,0.4687]
[1765610407286,0.55654716,3096.0,3095.9,0.4828]
[1765610407287,0.001,3096.0,3095.9,0.4828]
[1765610407445,0.001,3096.0,3095.9,0.9515]
[1765610409180,0.001,3096.0,3095.9,4.76205378]
[1765610411185,0.001,3096.0,3095.9,8.59806654]
[1765610411348,0.001,3096.0,3095.9,9.30196101]
[1765610413485,0.001,3096.0,3095.9,5.46594825]
[1765610415458,0.001,3096.0,3095.9,5.49824903]
[1765610415943,0.001,3096.0,3095.9,5.62757101]
[1765610425797,0.001,3096.0,3095.9,35.62757101]
[1765610425997,0.001,3096.0,3095.9,35.59527023]
[1765610427429,0.001,3096.0,3095.9,38.93527023]
[1765610431002,0.001,3096.0,3095.9,8.93527023]
[1765610431204,0.001,3096.0,3095.9,38.93527023]
[1765610437725,0.001,3096.0,3095.9,39.08527023]
[1765610438427,0.001,3096.0,3095.9,42.91897421]
[1765610440438,0.001,3096.0,3095.9,12.91897421]
[1765610440616,0.001,3096.0,3095.9,42.91897421]
[1765610440817,0.001,3096.0,3095.9,46.75267819]
[1765610444549,0.001,3096.0,3095.9,16.75267819]
[1765610444843,0.001,3096.0,3095.9,46.75267819]
[1765610445235,0.001,3096.0,3095.9,39.67514519]
[1765610445422,0.001,3096.0,3095.9,35.84144121]
[1765610445607,0.001,3096.0,3095.9,40.05773721]
[1765610445812,0.001,3096.0,3095.9,38.57596021]
[1765610446632,0.001,3096.0,3095.9,43.42797421]
[1765610450155,0.001,3096.0,3095.9,16.82985423]
[1765610450316,0.001,3096.0,3095.9,20.15455821]
[1765610450517,0.001,3096.0,3095.9,20.66355821]
[1765610450730,0.001,3096.0,3095.9,39.70228721]
[1765610450916,0.001,3096.0,3095.9,38.71628721]
[1765610451730,0.001,3096.0,3095.9,39.41190321]
[1765610452525,0.001,3096.0,3095.9,33.81416921]
[1765610452850,0.001,3096.0,3095.9,43.06799621]
[1765610453148,0.001,3096.0,3095.9,42.76761121]
[1765610453961,0.001,3096.0,3095.9,43.31701121]
[1765610454447,0.4755,3096.0,3095.9,25.46137121]
[1765610454647,0.001,3096.0,3095.9,25.46137121]
[1765610455153,0.001,3096.0,3095.9,37.15990121]
[1765610455330,0.001,3096.0,3095.9,36.15514221]
[1765610455725,0.001,3096.0,3095.9,36.62844221]
[1765610455954,0.001,3096.0,3095.9,37.74280221]
[1765610456164,0.001,3096.0,3095.9,37.03051221]
[1765610457362,0.001,3096.0,3095.9,38.12468421]
[1765610458065,0.001,3096.0,3095.9,36.18473221]
[1765610459163,0.001,3096.0,3095.9,39.88233921]
[1765610459334,0.001,3096.0,3095.9,39.07663121]
[1765610460163,0.001,3096.0,3095.9,13.43257421]
[1765610460360,0.001,3096.0,3095.9,43.43257421]
[1765610461842,0.001,3096.0,3095.9,43.43227893]
[1765610462056,0.001,3096.0,3095.9,47.26568763]
[1765610464153,0.001,3096.0,3095.9,43.43227893]
[1765610464354,0.001,3096.0,3095.9,13.43227893]
[1765610464558,0.001,3096.0,3095.9,43.43227893]
[1765610468067,0.0528,3096.0,3095.9,12.76865823]
[1765610468266,0.546,3096.0,3095.9,4.21329494]
[1765610468669,0.546,3096.0,3095.9,4.79377023]
[1765610469357,0.546,3096.0,3095.9,8.62717893]
[1765610469944,0.546,3096.0,3095.9,0.27932198]
[1765610470366,0.546,3096.0,3095.9,0.85979727]
[1765610470567,0.546,3096.0,3095.9,0.27932198]
[1765610471072,0.546,3096.0,3095.9,0.15]
[1765610479282,3.77597416,3096.0,3095.9,0.15]
[1765610479464,4.47655846,3096.0,3095.9,0.15]
[1765610480273,4.88206246,3096.0,3095.9,0.15]
[1765610487591,5.85230668,3096.0,3095.9,0.15]
[1765610492340,6.43278197,3096.0,3094.5,0.002]
[1765610492628,6.43278197,3096.0,3094.3,0.002]
[1765610492629,0.98597929,3094.5,3094.3,0.002]
[1765610492770,0.98597929,3094.5,3094.2,0.002]
[1765610492771,8.07620696,3094.3,3094.2,0.002]
[1765610492973,4.70515548,3094.3,3094.2,0.002]
[1765610493696,8.66995658,3094.3,3094.2,0.002]
[1765610493902,11.20945633,3094.3,3094.2,0.002]
[1765610494104,10.64545019,3094.3,3094.2,0.002]
[1765610494708,13.87719888,3094.3,3094.2,0.002]
[1765610495087,10.0418474,3094.3,3094.2,0.002]
[1765610495281,13.87719888,3094.3,3094.2,0.002]
[1765610495481,7.35097735,3094.3,3094.2,0.002]
[1765610495682,10.26532767,3094.3,3094.2,0.002]
[1765610496396,14.10067915,3094.3,3094.2,0.002]
[1765610502310,14.10067915,3094.3,3092.4,0.25925224]
[1765610502311,0.6527,3093.7,3092.4,0.25925224]
[1765610502492,4.33620264,3093.4,3092.4,0.25925224]
[1765610502880,5.27440264,3093.4,3092.4,0.25925224]
[1765610503105,0.4796,3093.4,3093.3,0.47200001]
[1765610503284,0.195,3094.9,3093.5,4.1349]
[1765610503485,0.195,3094.9,3094.0,0.472]
[1765610503486,0.51,3094.8,3094.0,0.472]
[1765610503684,0.51,3094.8,3094.0,1.80948478]
[1765610503994,0.405504,3094.7,3094.1,0.6659]
[1765610504195,6.46266196,3094.7,3094.1,0.6659]
[1765610504706,0.405504,3094.6,3094.1,0.6659]
[1765610505210,0.405504,3094.6,3094.2,0.4796]
[1765610505402,6.46266196,3094.7,3094.2,0.4796]
[1765610505709,8.05420597,3094.7,3094.2,0.4796]
[1765610505878,0.405504,3094.6,3094.2,0.4796]
[1765610506415,3.23153982,3094.5,3094.2,0.4796]
[1765610506593,0.511,3094.4,3094.2,0.4796]
[1765610506978,0.511,3094.4,3094.3,0.472]
[1765610507884,0.6015,3094.4,3094.1,0.1863]
[1765610508614,3.23174869,3094.3,3094.1,0.6659]
[1765610509416,3.23174869,3094.3,3094.1,0.1863]
[1765610509715,3.63725269,3094.3,3094.2,0.472]
[1765610511619,0.405504,3094.3,3094.2,0.472]
[1765610511804,0.405504,3094.3,3094.2,0.9516]
[1765610513118,3.63725269,3094.3,3094.2,0.9516]
[1765610513624,0.405504,3094.3,3094.2,0.9516]
[1765610517419,3.63725269,3094.3,3094.2,0.9516]
[1765610517623,0.405504,3094.3,3094.2,0.9516]
[1765610520421,0.51,3094.4,3094.2,0.9385]
[1765610520623,0.51,3094.4,3094.3,0.474]
[1765610520922,0.51,3094.4,3094.3,0.9405]
[1765610523823,0.405504,3095.0,3094.3,5.36012291]
[1765610524022,0.915504,3095.0,3094.9,0.474]
[1765610524423,0.001,3095.6,3094.9,8.01071594]
[1765610524626,0.51,3095.4,3095.3,0.474]
[1765610525050,0.001,3095.6,3095.3,0.474]
[1765610525051,0.001,3095.6,3095.3,0.9405]
[1765610525233,0.511,3095.6,3095.5,0.474]
[1765610525421,0.916504,3095.6,3095.5,0.474]
[1765610527021,3.63689552,3095.6,3095.5,0.9405]
[1765610527807,0.001,3095.6,3095.5,0.474]
[1765610528002,0.001,3095.6,3095.5,0.9405]
[1765610528937,3.33119664,3095.6,3095.0,1.43674422]
[1765610529144,6.56159328,3095.6,3095.0,1.04697529]
[1765610529441,7.01129328,3095.6,3095.0,1.04697529]
[1765610530238,7.01129328,3095.6,3095.0,0.58047529]
[1765610530434,7.01129328,3095.6,3095.1,0.4665]
[1765610530637,7.76352261,3095.6,3094.9,1.15814422]
[1765610530848,7.76352261,3095.6,3095.0,0.4665]
[1765610535636,4.53312597,3095.6,3095.0,1.04697529]
[1765610535814,0.001,3095.6,3095.5,0.474]
[1765610536312,0.001,3095.6,3095.5,0.9405]
[1765610538240,0.001,3095.6,3095.5,0.474]
[1765610538742,0.1046,3095.6,3095.3,0.4665]
[1765610539822,0.001,3095.6,3095.5,0.474]
[1765610540234,0.001,3095.6,3095.5,0.9556]
[1765610562471,0.001,3095.6,3095.5,0.474]
[1765610568788,0.001,3095.6,3095.5,0.9568]
[1765610571390,0.001,3095.6,3095.5,0.474]
[1765610573385,0.001,3095.6,3095.5,1.05447529]
[1765610573559,0.001,3095.6,3095.5,1.53727529]
[1765610575794,0.001,3095.6,3095.5,0.9568]
[1765610581672,0.0675,3095.6,3095.4,0.58047529]
[1765610583084,0.001,3095.6,3095.4,1.04537529]
[1765610583289,0.001,3095.6,3095.5,0.4899]
[1765610584393,0.0717,3095.6,3095.4,0.58047529]
[1765610585695,0.001,3095.6,3095.4,0.58047529]
[1765610585905,0.4804,3095.5,3095.1,4.88142686]
[1765610586112,3.2305196,3095.5,3095.1,0.4649]
[1765610586317,3.7235196,3095.5,3095.1,0.4649]
[1765610586614,3.7235196,3095.5,3095.0,0.58047529]
[1765610586783,0.493,3095.4,3095.1,3.83605157]
[1765610588721,3.72362187,3095.4,3095.1,3.83605157]
[1765610589375,3.72362187,3095.4,3094.7,4.30095157]
[1765610589376,0.0665,3095.2,3094.7,4.30095157]
[1765610589575,0.0049,3095.1,3094.9,3.83605157]
[1765610589798,0.4887,3095.3,3095.0,0.58047529]
[1765610589997,0.4887,3095.3,3095.0,1.07037529]
[1765610590389,3.23061607,3095.4,3095.0,1.07037529]
[1765610590591,3.72361607,3095.4,3095.0,1.07037529]
[1765610590979,3.72361607,3095.4,3095.2,0.58047529]
[1765610591379,0.0665,3095.3,3095.2,0.58047529]
[1765610594313,3.23054105,3095.5,3095.2,0.58047529]
[1765610594491,3.72354105,3095.5,3095.2,0.58047529]
[1765610595410,4.41982029,3095.5,3095.2,0.58047529]
[1765610597010,1.18927924,3095.5,3095.2,0.58047529]
[1765610597194,0.493,3095.5,3095.2,0.58047529]
[1765610597718,3.72351342,3095.5,3095.1,3.36223386]
[1765610598514,3.72351342,3095.5,3095.1,3.82713386]
[1765610599818,3.72351342,3095.5,3095.2,0.58047529]
[1765610603421,0.0665,3095.3,3095.2,0.58047529]
[1765610606298,0.5552,3095.3,3095.2,0.58047529]
[1765610606624,0.0665,3095.3,3095.0,0.58047529]
[1765610606838,0.0665,3095.3,3095.0,1.08037529]
[1765610607039,0.0665,3095.3,3095.0,4.91751935]
[1765610608929,0.0665,3095.3,3095.0,4.41761935]
[1765610609932,0.5552,3095.3,3095.0,4.41761935]
[1765610610630,0.0665,3095.3,3095.0,4.41761935]
[1765610611534,0.5552,3095.3,3095.0,4.41761935]
[1765610612039,0.0665,3095.3,3095.0,4.41761935]
[1765610612546,0.0665,3095.3,3095.0,4.91751935]
[1765610613544,0.0665,3095.3,3095.1,0.97029757]
[1765610624750,0.4887,3095.5,3095.2,0.4821]
[1765610629959,0.405504,3095.5,3095.2,1.06257529]
[1765610630125,0.405504,3095.5,3095.2,1.56247529]
[1765610630964,0.405504,3095.5,3095.2,1.06257529]
[1765610631171,0.405504,3095.5,3095.3,0.4999]
[1765610631972,0.405504,3095.5,3095.2,1.08037529]
[1765610633026,0.405504,3095.5,3095.4,0.4821]
[1765610633570,0.406504,3095.6,3095.4,0.4821]
[1765610633738,0.406504,3095.6,3095.5,0.4821]
[1765610634258,0.406504,3095.6,3095.5,0.982]
[1765610634828,0.406504,3095.6,3095.5,0.4821]
[1765610635758,0.001,3095.6,3095.5,0.4821]
[1765610636159,0.001,3095.6,3095.5,0.9616]
[1765610639460,0.001,3095.6,3095.5,0.4821]
[1765610640330,0.001,3095.6,3095.4,0.58047529]
[1765610641468,0.001,3095.6,3095.5,0.4744]
[1765610643667,0.001,3095.6,3095.5,5.37069707]
[1765610643974,0.001,3095.6,3095.5,6.34084403]
[1765610645872,0.001,3095.6,3095.5,2.50452225]
[1765610648960,0.001,3095.6,3095.5,2.02502225]
[1765610653385,0.001,3095.6,3095.5,2.50452225]
[1765610653686,0.001,3095.6,3095.5,5.73501813]
[1765610653990,0.001,3095.6,3095.5,2.50452225]
[1765610655096,0.001,3095.6,3095.5,36.47460849]
[1765610655263,0.001,3095.6,3095.5,36.44230354]
[1765610655660,0.001,3095.6,3095.5,36.13562854]
[1765610656087,0.001,3095.6,3095.5,36.44230354]
[1765610657466,0.001,3095.6,3095.5,36.19805654]
[1765610657966,0.001,3095.6,3095.5,36.75763051]
[1765610658162,0.001,3095.6,3095.5,36.44230354]
[1765610660224,0.001,3095.6,3095.5,6.44230354]
[1765610660396,0.001,3095.6,3095.5,20.53263454]
[1765610660583,0.001,3095.6,3095.5,16.57702354]
[1765610660787,0.001,3095.6,3095.5,20.41286105]
[1765610661173,0.001,3095.6,3095.5,25.06164305]
[1765610661373,0.001,3095.6,3095.5,23.94718805]
[1765610662169,0.001,3095.6,3095.5,6.93190354]
[1765610665802,0.001,3095.6,3095.5,27.34575754]
[1765610667986,0.001,3095.6,3095.5,30.02541954]
[1765610669204,0.001,3095.6,3095.5,34.81519054]
[1765610669706,0.001,3095.6,3095.5,24.20820454]
[1765610669907,0.001,3095.6,3095.5,23.50351154]
[1765610670278,0.001,3095.6,3095.5,23.66356754]
[1765610670609,0.001,3095.6,3095.5,11.96977754]
[1765610671007,0.001,3095.6,3095.5,11.61987754]
[1765610671380,0.001,3095.6,3095.5,9.13961754]
[1765610672380,0.001,3095.6,3095.5,12.91000354]
[1765610673406,0.001,3095.6,3095.5,19.01021154]
[1765610673907,0.001,3095.6,3095.5,18.68631754]
[1765610674606,0.001,3095.6,3095.5,20.46315254]
[1765610674796,0.001,3095.6,3095.5,20.22674854]
[1765610675509,0.001,3095.6,3095.5,20.94315254]
[1765610675700,0.001,3095.6,3095.5,20.69074854]
[1765610675900,0.001,3095.6,3095.5,24.52543106]
[1765610676408,0.001,3095.6,3095.5,10.76658606]
[1765610676592,0.001,3095.6,3095.5,30.71896706]
[1765610677206,0.001,3095.6,3095.5,24.51896706]
[1765610677510,0.001,3095.6,3095.5,25.16523306]
[1765610677701,0.001,3095.6,3095.5,21.00741754]
[1765610678506,0.001,3095.6,3095.5,35.14498554]
[1765610678911,0.001,3095.6,3095.5,33.49801854]
[1765610679313,0.001,3095.6,3095.5,28.00051854]
[1765610679613,0.001,3095.6,3095.5,26.78946054]
[1765610680716,0.001,3095.6,3095.5,35.35469354]
[1765610680895,0.001,3095.6,3095.5,34.15469354]
[1765610681215,0.001,3095.6,3095.5,29.95469354]
[1765610681708,0.001,3095.6,3095.5,6.93190354]
[1765610682013,0.001,3095.6,3095.5,35.35469354]
[1765610682384,0.001,3095.6,3095.5,28.43156054]
[1765610682585,0.001,3095.6,3095.5,27.32906054]
[1765610683418,0.001,3095.6,3095.5,25.43845954]
[1765610683587,0.001,3095.6,3095.5,21.76159254]
[1765610683788,0.001,3095.6,3095.5,17.01528454]
[1765610684094,0.001,3095.6,3095.5,15.88856954]
[1765610684806,0.001,3095.6,3095.5,16.34296954]
[1765610685006,0.001,3095.6,3095.5,21.69375154]
[1765610685908,0.001,3095.6,3095.5,23.69098754]
[1765610686107,0.001,3095.6,3095.5,22.69098754]
[1765610686411,0.001,3095.6,3095.5,21.69098754]
[1765610686918,0.001,3095.6,3095.5,6.92620354]
[1765610687090,0.001,3095.6,3095.5,21.69098754]
[1765610687289,0.001,3095.6,3095.5,20.69098754]
[1765610687516,0.001,3095.6,3095.5,18.77520554]
[1765610687816,0.001,3095.6,3095.5,18.32080554]
[1765610688012,0.001,3095.6,3095.5,26.02436854]
[1765610688190,0.001,3095.6,3095.5,20.42436854]
[1765610688714,0.001,3095.6,3095.5,19.56036854]
[1765610689133,0.001,3095.6,3095.5,20.55536854]
[1765610689989,0.001,3095.6,3095.5,6.47180354]
[1765610690190,0.001,3095.6,3095.5,20.53936854]
[1765610691027,0.001,3095.6,3095.5,19.23721054]
[1765610691190,0.001,3095.6,3095.5,18.52992513]
[1765610693202,0.001,3095.6,3095.5,28.12992513]
[1765610693812,0.001,3095.6,3095.5,23.32992513]
[1765610694203,0.001,3095.6,3095.5,25.05305813]
[1765610694404,0.001,3095.6,3095.5,23.32992513]
[1765610695121,0.001,3095.6,3095.5,5.76451813]
[1765610695425,0.001,3095.6,3095.5,28.96455713]
[1765610696030,0.001,3095.6,3095.5,25.56455713]
[1765610696228,0.001,3095.6,3095.5,25.88769013]
[1765610696430,0.001,3095.6,3095.5,25.56455713]
[1765610696595,0.001,3095.6,3095.5,23.96455713]
[1765610697039,0.001,3095.6,3095.5,18.34270413]
[1765610697331,0.001,3095.6,3095.5,16.34599013]
[1765610697527,0.001,3095.6,3095.5,14.66783413]
[1765610698326,0.001,3095.6,3095.5,15.66283413]
[1765610699329,0.001,3095.6,3095.5,18.54806013]
[1765610700499,0.001,3095.6,3095.5,17.40313613]
[1765610700925,0.001,3095.6,3095.5,16.25826413]
[1765610701524,0.4662,3095.6,3095.5,11.88251813]
[1765610701729,0.5501,3095.6,3095.5,9.12480065]
[1765610702338,0.4662,3095.6,3095.5,9.12480065]
[1765610702902,0.001,3095.6,3095.5,9.12480065]
[1765610704032,0.4624,3095.6,3095.5,5.29011813]
[1765610704346,0.4624,3095.6,3095.5,9.12480065]
[1765610705334,0.001,3095.6,3095.5,9.58090065]
[1765610705824,0.4624,3095.6,3095.5,9.12480065]
[1765610707942,0.4624,3095.6,3095.5,9.12542596]
[1765610708548,0.001,3095.6,3095.5,9.12542596]
[1765610709440,0.001,3095.6,3095.5,9.58152596]
[1765610709939,0.001,3095.6,3095.5,9.58143538]
[1765610710846,0.4624,3095.6,3095.5,9.12533538]
[1765610711342,0.4624,3095.6,3095.5,8.61633538]
[1765610711343,0.5501,3095.6,3095.5,8.61633538]
[1765610712138,0.4624,3095.6,3095.5,8.61633538]
[1765610712532,0.5501,3095.6,3095.5,8.61633538]
[1765610713050,0.4624,3095.6,3095.5,8.61633538]
[1765610713945,0.001,3095.6,3095.5,8.61633538]
[1765610714347,0.4587,3095.6,3095.5,8.61633538]
[1765610718540,0.001,3095.6,3095.5,9.07243538]
[1765610718744,0.001,3095.6,3095.5,9.56653538]
[1765610722960,0.001,3095.6,3095.5,40.83680548]
[1765610723153,0.001,3095.6,3095.5,41.93209056]
[1765610723348,0.001,3095.6,3095.5,41.37246989]
[1765610723749,0.001,3095.6,3095.5,40.83680548]
[1765610723948,0.001,3095.6,3095.5,10.83680548]
[1765610724158,0.001,3095.6,3095.5,40.83680548]
[1765610730060,0.001,3095.6,3095.5,10.83680548]
[1765610730264,0.001,3095.6,3095.5,40.83680548]
[1765610731970,0.001,3095.6,3095.5,40.74235832]
[1765610732271,0.001,3095.6,3095.5,12.63294107]
[1765610732640,0.001,3095.6,3095.5,10.51381807]
[1765610732838,0.001,3095.6,3095.5,10.96721807]
[1765610733238,0.001,3095.6,3095.5,37.37844107]
[1765610734170,0.001,3095.6,3095.5,7.37844107]
[1765610734474,0.001,3095.6,3095.5,37.37844107]